Cogmind - Beta 10.2 @@@ ROGUE MODE // 2021.02.11 @ 09:57:28 Player: PoorFredNoonan Result: Destroyed by Y-64 Sentinel with KE Penetrator Performance ------------- Evolutions (3) 1500 Regions Visited (5) 1000 Robots Destroyed (34) 170 Value Destroyed (1076) 1076 Prototype IDs (5) 100 Alien Tech Used (0) 0 Bonus (0) 0 TOTAL SCORE: 3846 Bonus ------- None Cogmind --------- Core Integrity 0/700 Matter 290/300 Energy 100/100 System Corruption 1% Temperature Cool (9) Movement Core (600) Ox11 Location -7/Lower Caves Parts ------- > --- POWER (2) -------- (None) > --- PROPULSION (4) --- (None) > --- UTILITY (4) ------ High-capacity Storage Unit Terrain Scan Processor > --- WEAPON (3) ------- Makeshift Spear > --- INVENTORY (12) --- (None) Peak State ------------ > --- POWER ------------ Light Deuterium Engine Light Nuclear Core > --- PROPULSION ------- Aluminum Leg Aluminum Leg Aluminum Leg Improved Aluminum Leg > --- UTILITY ---------- High-capacity Storage Unit Advanced Weight Redist. System Terrain Scan Processor Particle Charger > --- WEAPON ----------- Particle Gun Advanced Beam Cannon > --- INVENTORY -------- Improved Ion Engine Improved Heat Sink [Rating: 25] Favorites ----------- Power Ion Engine Engine Ion Engine Power Core Light Nuclear Core Propulsion Aluminum Leg Treads Light Treads Leg Aluminum Leg Utility Terrain Scan Processor Device Advanced Weight Redist. System Storage Small Storage Unit Processor Terrain Scan Processor Protection Weapon Shielding Weapon Grenade Launcher Energy Gun Medium Laser Energy Cannon Advanced Beam Cannon Ballistic Gun Enhanced Autogun Launcher Grenade Launcher Piercing Weapon Makeshift Spear Build | -11 -10 -9 -8 -7 -7 ------- Run | Scr Mat Mat Mat Fac Low Slots Evolved 6 | . . 2 2 2 . Power 1 | . . . . 1 . Propulsion 2 | . . 2 . . . Utility 2 | . . . 2 . . Weapon 1 | . . . . 1 . Parts Attached 47 | 6 3 3 29 2 4 Power 12 | 1 . 1 8 1 1 Engine 9 | 1 . 1 5 1 1 Core 3 | . . . 3 . . Reactor . | . . . . . . Propulsion 14 | 2 . 2 9 1 . Treads 2 | . . . 2 . . Leg 12 | 2 . 2 7 1 . Wheel . | . . . . . . Hover . | . . . . . . Flight . | . . . . . . Utility 7 | 1 1 . 4 . 1 Device 3 | . . . 2 . 1 Storage 2 | 1 . . 1 . . Processor 1 | . . . 1 . . Hackware . | . . . . . . Protection 1 | . 1 . . . . Artifact . | . . . . . . Weapon 14 | 2 2 . 8 . 2 Energy Gun 7 | 2 . . 5 . . Energy Cannon 2 | . . . 1 . 1 Ballistic Gun 1 | . . . 1 . . Ballistic Cannon . | . . . . . . Launcher 3 | . 2 . 1 . . Special Weapon . | . . . . . . Impact Weapon . | . . . . . . Slashing Weapon . | . . . . . . Piercing Weapon 1 | . . . . . 1 Special Melee Weapon . | . . . . . . Unidentified Prototypes 1 | . . . 1 . . Parts Lost 29 | . . 1 18 . 10 Power 5 | . . . 2 . 3 Propulsion 9 | . . . 8 . 1 Utility 4 | . . . 1 . 3 Weapon 11 | . . 1 7 . 3 Highest Loss Streak 12 | . . 1 12 . 10 Average Slot Usage (%) 84 | . 86 89 88 92 63 Engine 6 | . 14 11 4 7 6 Core 3 | . . . 4 7 5 Treads 1 | . . . 2 . . Leg 25 | . 28 34 26 30 7 Device 9 | . . . 12 15 13 Storage 11 | . 14 11 12 7 7 Processor 6 | . . . 8 7 7 Protection 2 | . 1 11 1 . . Energy Gun 5 | . 9 . 5 7 5 Energy Cannon 4 | . . . 5 7 6 Launcher 6 | . 18 21 3 . . Naked Turns . | . . . . . . Heaviest Build 52 | 13 16 16 48 52 52 Greatest Support 54 | 20 20 40 54 52 52 Greatest Overweight (x) 11 | . . . 2 . 11 Average Overweight (x) . | . . . . . 2 Largest Inventory Capacity 14 | 6 6 6 14 12 12 Average Capacity 9 | 5 6 6 11 12 12 Most Carried 5 | 2 5 5 5 3 4 Average Carried 3 | 1 3 4 3 2 2 Final Capacity 12 | 6 6 6 12 12 12 Final Carried 5 | 2 4 5 4 2 . Class Distribution -------------------- 61% | Mutant 38% | Scavenger-Mutant Dominant Class ---------------- Mutant | -10/Materials Mutant | -9/Materials Scavenger-Mutant | -8/Materials Scavenger-Mutant | -7/Factory Scavenger-Mutant | -7/Lower Caves Resources | -11 -10 -9 -8 -7 -7 ----------- Run | Scr Mat Mat Mat Fac Low Matter Collected 956 | 260 6 138 497 . 55 Remotely . | . . . . . . Salvage Created 1072 | . 23 208 796 . 45 Parts 59 | . 6 12 37 . 4 Haulers Intercepted 1 | . . . 1 . . Recyclers Shooed . | . . . . . . Parts Field Recycled . | . . . . . . Retrieved Matter . | . . . . . . Parts Self-Destructed 9 | . . . . . 9 Prevented . | . . . . . . Kills | -11 -10 -9 -8 -7 -7 ------- Run | Scr Mat Mat Mat Fac Low Combat Hostiles Destroyed 26 | . 3 7 15 . 1 Guns 4 | . . . 4 . . Cannons 7 | . . . 6 . 1 AOE 15 | . 3 7 5 . . Classes Destroyed 11 | . 2 3 5 . 1 Worker 2 | . . 1 1 . . Hauler 1 | . . . 1 . . Recycler 1 | . . 1 . . . Watcher 4 | . 1 . 3 . . Swarmer 6 | . 3 3 . . . Grunt 13 | . . 4 9 . . Brawler 1 | . . . 1 . . Duelist 1 | . . . 1 . . Sentry 3 | . . . 3 . . Hunter 1 | . . . 1 . . Programmer 1 | . . . . . 1 Best Kill Streak 6 | . 3 6 5 . 1 Combat Bots Only 4 | . 3 4 3 . 1 Max Kills in Single Turn 2 | . 2 2 2 . 1 Gunslinging . | . . . . . . Exploded 2 | . 2 2 1 . . Melee . | . . . . . . Uniques/NPCs Destroyed . | . . . . . . Combat | -11 -10 -9 -8 -7 -7 -------- Run | Scr Mat Mat Mat Fac Low Damage Taken 3827 | . 98 372 1950 . 1407 Core 1148 | . 5 46 386 . 711 Absorbed by Shields . | . . . . . . Core Remaining (%) 78 | 100 98 88 29 . . Volleys Fired 71 | . 3 8 50 . 10 Largest 2 | . 2 2 2 . 2 Hottest 133 | . 80 60 133 . 133 Shots Fired 103 | . 6 16 65 . 16 Gun 37 | . 1 . 30 . 6 Cannon 33 | . . . 23 . 10 Launcher 33 | . 5 16 12 . . Special . | . . . . . . Kinetic 16 | . . . 16 . . Thermal 54 | . 1 . 37 . 16 Explosive 33 | . 5 16 12 . . Electromagnetic . | . . . . . . Robot Hit Streak 28 | . 1 5 28 . 6 Robot Miss Streak 3 | . 3 2 2 . 2 Penetration Max . | . . . . . . Secondary Targets . | . . . . . . Shots Hit Robots 73 | . 1 6 56 . 10 Core Hits 59 | . 4 15 36 . 4 Critical Hits 2 | . . . 1 . 1 Critical Kills 1 | . . . 1 . . Critical Parts Destroyed 1 | . . . . . 1 Melee Attacks . | . . . . . . Impact . | . . . . . . Slashing . | . . . . . . Piercing . | . . . . . . Sneak Attacks . | . . . . . . Combat Hostiles . | . . . . . . Follow-up Attacks . | . . . . . . Damage Inflicted 2265 | . 181 444 1405 . 235 Guns 519 | . . . 429 . 90 Cannons 568 | . . . 423 . 145 Explosions 1178 | . 181 444 553 . . Melee . | . . . . . . Ramming . | . . . . . . Kinetic 271 | . . . 271 . . Thermal 816 | . . . 581 . 235 Explosive 1178 | . 181 444 553 . . Electromagnetic . | . . . . . . Impact . | . . . . . . Slashing . | . . . . . . Piercing . | . . . . . . Highest Corruption 1 | . . . . . 1 Average Corruption 1 | . . . . . 1 Corruption Purged . | . . . . . . Overload Shots . | . . . . . . Overflow Damage 28 | . 20 . 8 . . Projectiles . | . . . . . . Explosions 28 | . 20 . 8 . . Melee . | . . . . . . Knockbacks . | . . . . . . Impact . | . . . . . . Kinetic . | . . . . . . Secondary . | . . . . . . Self-Inflicted Damage 160 | . 46 93 21 . . Shots 8 | . 2 5 1 . . Rammed 1 | . . . 1 . . Targets Rammed 1 | . . . 1 . . Kicked . | . . . . . . Crushed . | . . . . . . Highest Temperature 375 | . 18 9 225 . 375 Average Temperature 86 | . 12 4 53 . 174 Received Heat Transfer 1515 | . . 75 927 . 513 Siege Activations . | . . . . . . Robots Corrupted . | . . . . . . Combat Hostiles . | . . . . . . Parts Fried . | . . . . . . Impact Corruptions . | . . . . . . Robots Melted . | . . . . . . Combat Hostiles . | . . . . . . Parts Melted 2 | . . . 2 . . Heat Transferred 1554 | . . . 1147 . 407 Parts Sabotaged . | . . . . . . Parts Stolen 3 | . . . . . 3 Parts Stripped . | . . . . . . Power Chain Reactions . | . . . . . . Missiles Intercepted . | . . . . . . Alert | -11 -10 -9 -8 -7 -7 ------- Run | Scr Mat Mat Mat Fac Low Peak Influence 261 | . 112 261 161 7 . Initial 109 | . . 46 109 . . Average 69 | . 40 120 89 3 . Maximum Alert Level 1 | . . 1 . . . Low Security (%) 99 | 100 100 91 100 100 . Level 1 . | . . 8 . . . Level 2 . | . . . . . . Level 3 . | . . . . . . Level 4 . | . . . . . . Level 5 . | . . . . . . High Security . | . . . . . . Max Security . | . . . . . . Squads Dispatched 5 | . . 2 2 1 . Investigation 1 | . . . . 1 . Extermination . | . . . . . . Reinforcement 4 | . . 2 2 . . Assault . | . . . . . . Garrison . | . . . . . . Intercept . | . . . . . . Construction Impeded 1 | . . . 1 . . Haulers Reinforced . | . . . . . . Stealth | -11 -10 -9 -8 -7 -7 --------- Run | Scr Mat Mat Mat Fac Low Distress Signals 5 | . . 5 . . . Communications Jammed . | . . . . . . Distress Signals . | . . . . . . Times Spotted 43 | . 4 12 19 . 8 Peak Tracking Total 5 | . 3 5 5 . 5 Tactical Retreats 1 | . . 1 . . . Traps | -11 -10 -9 -8 -7 -7 ------- Run | Scr Mat Mat Mat Fac Low Traps Triggered . | . . . . . . Indirectly . | . . . . . . Trap Hack Attempts . | . . . . . . Triggered . | . . . . . . Disarmed . | . . . . . . Reprogrammed . | . . . . . . Reused . | . . . . . . Traps Extracted . | . . . . . . Installed . | . . . . . . Triggered . | . . . . . . Machines | -11 -10 -9 -8 -7 -7 ---------- Run | Scr Mat Mat Mat Fac Low Machines Disabled 1 | . 1 . . . . Max in Single Turn 1 | . 1 . . . . Machines Sabotaged . | . . . . . . Garrisons Compromised . | . . . . . . Overloaded Fab Kills . | . . . . . . Fab Network Shutdowns . | . . . . . . Hacking | -11 -10 -9 -8 -7 -7 --------- Run | Scr Mat Mat Mat Fac Low Machines Accessed 4 | . 1 . 1 1 1 Terminals 3 | . 1 . 1 1 . Fabricators . | . . . . . . Repair Stations . | . . . . . . Recycling Units . | . . . . . . Scanalyzers . | . . . . . . Garrison Access . | . . . . . . Total Hacks 9 | . 2 . 3 3 1 Successful 9 | . 2 . 3 3 1 Failed . | . . . . . . Catastrophic . | . . . . . . Database Lockouts . | . . . . . . Manual 1 | . . . . . 1 Terminals 8 | . 2 . 3 3 . Fabricators . | . . . . . . Repair Stations . | . . . . . . Recycling Units . | . . . . . . Scanalyzers . | . . . . . . Garrison Access . | . . . . . . Terminal Hacks 9 | . 2 . 3 3 1 Record 3 | . . . 1 2 . Robot Schematic 1 | . . . . 1 . Prototype ID Bank 2 | . 1 . 1 . . Open Door 1 | . . . . . 1 Unreport Threat 1 | . . . 1 . . Zone Layout 1 | . 1 . . . . Fabricator Hacks . | . . . . . . Repair Station Hacks . | . . . . . . Recycling Unit Hacks . | . . . . . . Scanalyzer . | . . . . . . Garrison Access Hacks . | . . . . . . Unauthorized Hacks . | . . . . . . Terminals . | . . . . . . Fabricators . | . . . . . . Repair Stations . | . . . . . . Recycling Units . | . . . . . . Scanalyzers . | . . . . . . Garrison Access . | . . . . . . Data Cores Recovered . | . . . . . . Used . | . . . . . . Hacking Detections 2 | . . . 1 1 . Full Trace Events 2 | . . . 1 1 . Feedback Events . | . . . . . . Feedback Blocked . | . . . . . . Robot Schematics Acquired 1 | . . . . 1 . Robots Built . | . . . . . . Matter . | . . . . . . Time . | . . . . . . Total Robot Build Rating . | . . . . . . Part Schematics Acquired . | . . . . . . Parts Built . | . . . . . . Matter . | . . . . . . Time . | . . . . . . Total Part Build Rating . | . . . . . . Parts Repaired . | . . . . . . Time . | . . . . . . Parts Recycled . | . . . . . . Recycled Matter . | . . . . . . Retrieved Matter . | . . . . . . Retrieved Components . | . . . . . . Parts Scanalyzed . | . . . . . . Part Schematics Acquired . | . . . . . . Parts Damaged . | . . . . . . Bothacking | -11 -10 -9 -8 -7 -7 ------------ Run | Scr Mat Mat Mat Fac Low Used RIF Installer . | . . . . . . Robots Hacked . | . . . . . . Non-combat . | . . . . . . Combat . | . . . . . . Robot Hacks Applied . | . . . . . . Relay Couplers Released . | . . . . . . Robots Rewired . | . . . . . . Allies Hacked . | . . . . . . Hacks Repelled . | . . . . . . Allies | -11 -10 -9 -8 -7 -7 -------- Run | Scr Mat Mat Mat Fac Low Total Allies . | . . . . . . Largest Group . | . . . . . . Highest-Rated Group . | . . . . . . Highest-Rated Ally . | . . . . . . Total Orders . | . . . . . . Ally Attacks . | . . . . . . Total Damage . | . . . . . . Kills . | . . . . . . Allies Corrupted . | . . . . . . Allies Melted . | . . . . . . Intel | -11 -10 -9 -8 -7 -7 ------- Run | Scr Mat Mat Mat Fac Low Robot Analysis Total . | . . . . . . Derelict Logs Recovered . | . . . . . . Drone Launches . | . . . . . . Drone Recoveries . | . . . . . . Exploration | -11 -10 -9 -8 -7 -7 ------------- Run | Scr Mat Mat Mat Fac Low Turns Passed 1696 | 217 200 156 857 56 210 Spaces Moved 744 | 47 153 107 297 46 94 Core 19 | 6 . . 2 . 11 Treads 44 | . . . 44 . . Legs 681 | 41 153 107 251 46 83 Wheels . | . . . . . . Hover . | . . . . . . Flight . | . . . . . . Fastest Speed 50 | 50 120 120 120 120 120 Average Speed 134 | 111 120 120 135 120 193 Slowest Speed 600 | 120 120 120 200 120 600 Overloaded Moves . | . . . . . . Propulsion Burnouts . | . . . . . . Robots Hopped . | . . . . . . Cave-ins Triggered . | . . . . . . Exploration Rate (%) 19 | 4 37 22 35 2 14 Regions Visited 5 Branch Regions 1 Pre-discovered Areas . | . . . . . . Known Exits Taken . | . . . . . . Unknown Exits Taken 5 | 1 1 1 1 1 . Scrap Searched 2 | . . . . . 2 Spaces Dug . | . . . . . . Terrain Destroyed 174 | . 34 91 49 . . Melee . | . . . . . . Projectile 1 | . . . 1 . . AOE 173 | . 34 91 48 . . Terrain Rammed . | . . . . . . Walls Destroyed . | . . . . . . Machines Disabled . | . . . . . . Actions | -11 -10 -9 -8 -7 -7 --------- Run | Scr Mat Mat Mat Fac Low Total 1330 | 209 162 117 685 47 110 Wait 449 | 155 . . 294 . . Move 739 | 46 152 106 296 45 94 Hop . | . . . . . . Pick Up 17 | 2 3 . 10 . 2 Fast Attach 22 | 6 1 2 13 . . Attach 14 | . . . 8 2 4 Detach . | . . . . . . Swap 11 | . 2 1 8 . . Drop 6 | . 1 . 5 . . Fire 71 | . 3 8 50 . 10 Melee . | . . . . . . Ram . | . . . . . . Kick . | . . . . . . Crush 1 | . . . 1 . . Escape Stasis . | . . . . . . Rewire . | . . . . . . Trap . | . . . . . . Miscellaneous . | . . . . . . Route ------- -11/Scrapyard -10/Materials (discovered 2 exits: [*Mat] / [*Min]) -9/Materials -8/Materials -7/Factory -7/Lower Caves History --------- Turn | Location | Event 22 | -11/Scrapyard | Discovered new exit (range 15) 218 | -11/Scrapyard | Entered Materials 230 | -10/Materials | Discovered new exit (range 10) 305 | -10/Materials | Build established: Mutant 407 | -10/Materials | Discovered new exit (range 10) 418 | -10/Materials | Entered another Materials area 418 | -9/Materials | Evolved 2 slots: Propulsion x2 554 | -9/Materials | Discovered new exit (range 13) 574 | -9/Materials | Entered another Materials area 574 | -8/Materials | Evolved 2 slots: Utility x2 879 | -8/Materials | Core integrity fell below 50% 906 | -8/Materials | Lost 12 parts (1p6n5w) 1304 | -8/Materials | Build established: Scavenger-Mutant 1413 | -8/Materials | Discovered new exit (range 13) 1431 | -8/Materials | Entered Factory 1431 | -7/Factory | Evolved 2 slots: Power x1, Weapon x1 1480 | -7/Factory | Discovered new exit (range 4) 1487 | -7/Factory | Entered Lower Caves 1498 | -7/Lower Caves | Imp. Aluminum Leg stolen by Master Thief 1507 | -7/Lower Caves | Aluminum Leg stolen by Master Thief 1508 | -7/Lower Caves | Aluminum Leg stolen by Master Thief 1681 | -7/Lower Caves | Core integrity fell below 50% 1691 | -7/Lower Caves | Core integrity fell below 20% 1697 | -7/Lower Caves | Destroyed by Y-64 Sentinel with KE Penetrator Last Messages --------------- 01662_ Imp. Heat Sink fries itself beyond repair. 01662_ Imp. EM Pulse Cannon destroyed. 01662_ Acquired 25 matter. 01664_ Penetrated by Slug. 01665_ Shock Rifle fries itself beyond repair. 01668_ Remote Datajack fries itself beyond repair. 01669_ Penetrated by Slug. 01671_ Lgt. Deuterium Engine destroyed. 01674_ Imp. Heat Sink destroyed. 01674_ Penetrated by Slug. 01674_ Imp. Ion Engine destroyed. 01675_ Adv. Weight Redist. System destroyed. Bump into an enemy to attack with the active melee weapon. Even while active, melee weapons do not fire together with ranged weapons in the same volley. 01677_ Penetrated by Slug. 01688_ Slug penetrates Wall Reinforcements. 01691_ Penetrated by Slug. 01694_ G-47 Trooper destroyed. 01697_ Penetrated by Slug. Map ----- +----------------------------------------------------+ | ?????????????????????????????????????????????????? | | ?????????????????????????????????????????????????? | | ?????????????????????????????????????????????????? | | ?????????????????????????????????????????????????? | | ?????????????????????????????????????????????????? | | ?????????????????????????????????????????????????? | | ?????????????????????????????????????????????????? | | ?????????????????????????????????????????????????? | | ?????????????????????????????????????????????????? | | ?????????????????????????????????????????????????? | | ?????????????????????????????????????????????????? | | ?????????????????????????????????????????????????? | | ?????????????????????????????????????????????????? | | ?????????????????????????????????????????????????? | | ?????????????????????????????????????????????????? | | ?????????????????????????????????????????????????? | | ?????????????????????????????????????????????????? | | ??????????????????????????????????#??????????????? | | ?????????????????????????????????? ##????????##### | | ?????????????????????????????????? ####?????# % | | ????????????????????????#########? # #????# [ | | ???????????????????????##"""""""## #????# ## | | ??????????????????????##"" ## #????# #? | | ??????????????????????#"" ## # ##???# #? | | ??????????????????????#"% ###### # #???# # | | ??????????????????????#"=@ % #???# # | | ??????????????????????#"g Y %#X#### # ##???# | | ??????????????????????#"" ###??# ## #????# # | | ??????????????????????##" ??## ## #????# # | | ???????????????????????#"" X## ## #????#! ## | | ???????????????????????##"""""### ## #????#% ## | | ????????????????????????####### ## ######! #? | | ?????????????????????# #? | | ??????????????????????## ####### #? | | ???????????????????? ???????## #####? | | ??????????????????? ??????????# ##????? | | ????????????????????#?##????????????# #####?????? | | ???????????????????????????????????# #?????????? | | ???????????????????????????????????# ?????????? | | ??????????????????????????????????" ????????? | | ?????????????????????????????????"" ????????? | | ?????????????????????????????????"" ???????? | | ????????????????????????????????? ###???????? | | ?????????????????????????????????"" ##?????????? | | ?????????????????????????????????"" #???????????? | | ??????????????????????????????????" ????????????? | | ?????????????????????????????????? ????????????? | | ????????????????????????????????????#????????????? | | ?????????????????????????????????????????????????? | | ?????????????????????????????????????????????????? | +----------------------------------------------------+ Best States ------------- Heat Dissipation 48 Energy Generation 23 Energy Capacity 305 Matter Stores 300 Matter Capacity 300 Sight Range 16 Terrain Scan Density 85 Additional Mass Support 9 Weapon Shielding 33 Evasion (%) 40 Recoil Reduction 2 Particle Charging 15 Item Schematics ----------------- None Robot Schematics ------------------ L-41 Fighter | -7/Factory | Hacked Fabricated ------------ Nothing Alien Tech Used ----------------- None Achievements -------------- Everything Is Under Control Challenges ------------ None Game ------ Seed ChainAssembledKatana Manual? 0 Play Time 00:24:25 Cumulative 3.3 hours Start 2021.02.10 @ 23:39:41 End 2021.02.11 @ 09:57:28 Sessions 3 Manual Loads 0 Difficulty Rogue Special Mode None Game No. 4 Rogue 4 Adventurer 0 Explorer 0 Win Type - Total 0 Types 0/0/0/0/0/0/0/0/0 Lore% 1 Gallery% 9 Achievement% 8 Wizard Run 0 Options --------- ASCII 0 Keyboard 0 Movement Mouse Keybinds 0 Fullscreen 2 Font 24/Terminus Map View 76x50 Tactical HUD 1 Map Filters NONE Filters NONE Steam 1 RUN: 8d271049-2350-4c81-9136-996df10a85d9